fUST/lending_fUST_20240130
["ID","MTS","AMOUNT","RATE_DAILY","PERIOD"]
[313004984,1706590858568,155.0310062,0.00029,30]
[313004985,1706590874574,233.84501211,0.00029,30]
[313005079,1706591431861,-1774.63754482,0.00020527,2]
[313005081,1706591431870,-155.0310062,0.00020527,4]
[313005083,1706591431880,-527.38076305,0.00020528,2]
[313005084,1706591431890,-667.01255103,0.00020529,4]
[313005086,1706591431900,-9837.06040953,0.00020976,2]
[313005139,1706591437907,-2204.50374427,0.00020976,2]
[313005141,1706591437919,-1079.1973388,0.00020976,2]
[313005143,1706591437928,-171.654489,0.00021619,2]
[313005144,1706591437938,-303.92838354,0.000217,2]
[313005146,1706591437949,-166.666666,0.00021918,2]
[313005147,1706591437958,-697.21808398,0.00022,2]
[313005152,1706591438017,-565.90470413,0.00022,2]
[313005230,1706591442905,-774.12692705,0.00022,2]
[313005232,1706591442915,-327.7663532,0.0002243,2]
[313005234,1706591442924,-166.666666,0.00022431,2]
[313005236,1706591442935,-1317.95690893,0.00022491,2]
[313005255,1706591443099,-2656.53708814,0.00022491,2]
[313005256,1706591443109,-2498.43191806,0.00022492,2]
[313005366,1706592631997,-395.64947781,0.00020391,2]
[313005367,1706592632006,-1637.83086005,0.00021886,2]
[313005372,1706592632053,-136.80668477,0.00021886,2]
[313005373,1706592632062,-303.92838354,0.00021887,2]
[313005375,1706592632071,-205.10794795,0.00021888,2]
[313005377,1706592632081,-205.10794795,0.00021888,2]
[313005379,1706592632101,-171.654489,0.00021889,2]
[313005381,1706592632112,-166.666666,0.00021918,2]
[313005383,1706592632122,-3974.49399707,0.00022,2]
[313005385,1706592632131,-244.55594056,0.00022,2]
[313005533,1706592643098,-83.21041264,0.00022,2]
[313005535,1706592643108,-169.397653,0.00022021,2]
[313005536,1706592643117,-1392.7995643,0.00022273,2]
[313005537,1706592643127,-269.755107,0.00022353,2]
[313005539,1706592643135,-166.666666,0.00022482,2]
[313005541,1706592643144,-3547.47661404,0.00022492,2]
[313005548,1706592646113,-683.53576771,0.00022492,2]
[313005549,1706592646123,-37.2149092,0.00022492,2]
[313005551,1706592758949,4475.5,0.00029,30]
[313005640,1706593832202,-367.441969,0.00021989,2]
[313005753,1706593838245,-617.52240328,0.00021988,2]
[313005755,1706593838257,-272.96647421,0.00021988,2]
[313005756,1706593838266,-132.558031,0.00021989,2]
[313005761,1706593838414,-155.03255684,0.0002199,2]
[313005763,1706593838424,-155.03255684,0.0002199,2]
[313005765,1706593838434,-681.5641278,0.00021991,2]
[313005767,1706593838450,-1156.6432218,0.00021991,2]
[313005841,1706593843297,-3233.70747727,0.00021991,2]
[313005843,1706593843311,-144.10062692,0.00021991,2]
[313005844,1706593843320,-294.47392487,0.00022,4]
[313005845,1706593843331,-426.60065097,0.0002249,2]
[313005846,1706593843340,-327.7663532,0.00022491,2]
[313005847,1706593843350,-2218.91260865,0.00022493,2]
[313005875,1706593846301,-3974.49399707,0.00022,2]
[313005876,1706593846311,-3320.58063519,0.00022493,2]
[313005877,1706593846319,-166.666666,0.00022544,2]
[313005878,1706593846328,-289.67164589,0.00023,2]
[313005879,1706593846338,-623.33680142,0.00023,2]
[313005880,1706593846347,-155.26695136,0.00023,2]
[313005881,1706593846356,-1261.25015974,0.00023,2]
[313005882,1706593846365,-166.666666,0.00023158,2]
[313005883,1706593846374,-166.666666,0.00023773,2]
[313005884,1706593846383,-703.23771844,0.00024,2]
[313006083,1706595041631,-155.0294556,0.00020871,2]
[313006084,1706595041641,-1856.95377279,0.00020871,2]
[313006085,1706595041650,-500.0,0.00020872,2]
[313006086,1706595041659,-413.23389905,0.000209,2]
[313006087,1706595041669,-303.92838354,0.00021999,2]
[313006088,1706595041678,-327.7663532,0.00022147,2]
[313006089,1706595041687,-166.666666,0.00022148,2]
[313006090,1706595041696,-321.9315877,0.00022538,2]
[313006091,1706595041707,-166.666666,0.00022752,2]
[313006092,1706595041716,-169.991462,0.00022916,2]
[313006093,1706595041726,-1261.25015974,0.00023,2]
[313006094,1706595041735,-166.666666,0.00023356,2]
[313006095,1706595041744,-166.666666,0.0002396,2]
[313006096,1706595041754,-2695.84826238,0.00023999,2]
[313006173,1706595046351,-4256.5249504,0.00023999,2]
[313006203,1706595536598,500.0,0.00029,30]
[313006204,1706595591297,2500.23,0.00029,30]
[313006227,1706596232611,-155.0294556,0.00021517,2]
[313006228,1706596232622,-155.0294556,0.00021518,4]
[313006229,1706596232631,-169.991463,0.00021519,2]
[313006230,1706596232641,-1856.95377279,0.00021699,2]
[313006231,1706596232651,-303.92838354,0.00021771,2]
[313006232,1706596232660,-176.740816,0.00021772,2]
[313006233,1706596232669,-166.666666,0.00021918,2]
[313006234,1706596232679,-1365.32102304,0.00021999,2]
[313006268,1706596241786,-469.45799078,0.00021999,2]
[313006270,1706596241854,-1753.50973963,0.00021999,2]
[313006271,1706596241863,-294.47392487,0.00022,4]
[313006272,1706596241873,-2037.24971516,0.00022,2]
[313006273,1706596241882,-327.7663532,0.00022,2]
[313006274,1706596241893,-426.60065097,0.0002243,2]
[313006275,1706596241903,-166.666666,0.00022431,2]
[313006276,1706596241913,-166.666666,0.00022944,2]
[313006277,1706596241922,-3974.49399707,0.00022999,2]
[313006278,1706596241932,-1261.25015974,0.00023,2]
[313006279,1706596241943,-8664.3984942,0.00023,2]
[313006282,1706596243640,-1289.04300459,0.00023,2]
[313006283,1706596243650,-166.666666,0.00023456,2]
[313006284,1706596243659,-166.666666,0.00023969,2]
[313006285,1706596243669,-7332.32723806,0.00024,2]
[313006365,1706597431799,-155.0294556,0.00021779,2]
[313006367,1706597431809,-1386.28988879,0.0002178,2]
[313006381,1706597439518,-470.663884,0.0002178,2]
[313006382,1706597439528,-500.0,0.00021781,2]
[313006383,1706597439537,-461.13718608,0.00021799,2]
[313006384,1706597439547,-275.48926603,0.000219,2]
[313006385,1706597439556,-171.237964,0.00021918,2]
[313006386,1706597439566,-327.7663532,0.00022,2]
[313006387,1706597439575,-426.60065097,0.00022612,2]
[313006388,1706597439584,-171.237964,0.00022614,2]
[313006389,1706597439593,-1261.25015974,0.00023,2]
[313006390,1706597439602,-171.237964,0.0002331,2]
[313006391,1706597439611,-10110.81910004,0.00024,2]
[313006392,1706597439621,-155.0294556,0.00024,2]
[313006393,1706597439630,-155.0294556,0.00024,2]
[313006394,1706597439639,-1111.02241216,0.00024,2]
[313006395,1706597439647,-235.08055389,0.00024,2]
[313006396,1706597439656,-343.55950094,0.00024,2]
[313006397,1706597439665,-338.72404559,0.00024,2]
[313006398,1706597439674,-155.0294556,0.00024,2]
[313006399,1706597439683,-155.0294556,0.00024,2]
[313006400,1706597439692,-155.0294556,0.00024,2]
[313006401,1706597439701,-300.0,0.00024,2]
[313006402,1706597439711,-1290.02264877,0.00024,2]
[313006403,1706597439720,-621.56241516,0.00024,2]
[313006404,1706597439729,-1311.3899816,0.00024,2]
[313006405,1706597439739,-155.0294556,0.00024,2]
[313006406,1706597439748,-535.86555329,0.00024,2]
[313006407,1706597439757,-1828.65768073,0.00024,2]
[313006408,1706597439767,-171.237964,0.00024006,2]
[313006409,1706597439776,-155.0294556,0.00024298,4]
[313006410,1706597439786,-150.561,0.00024358,2]
[313006411,1706597439796,-3436.96277478,0.00024359,2]
[313006413,1706597439805,-151.0,0.00024359,2]
[313006414,1706597439814,-171.84813874,0.00024359,2]
[313006415,1706597439824,-151.0,0.00024359,2]
[313006416,1706597439833,-821.778476,0.00024359,2]
[313006417,1706597439843,-821.778476,0.00024359,2]
[313006418,1706597439852,-821.778476,0.00024359,2]
[313006419,1706597439861,-821.778476,0.00024359,2]
[313006420,1706597439871,-728.40640698,0.00024359,2]
[313006421,1706597439883,-673.243293,0.00024359,2]
[313006422,1706597439893,-673.243293,0.00024359,2]
[313006423,1706597439902,-673.243293,0.00024359,2]
[313006424,1706597439911,-673.243293,0.00024359,2]
[313006425,1706597439921,-380.0,0.00024658,2]
[313006426,1706597439930,-151.0,0.00024658,2]
[313006427,1706597439939,-151.0,0.00024658,2]
[313006428,1706597439949,-673.243293,0.00024658,2]
[313006429,1706597439961,-673.243293,0.00024658,2]
[313006430,1706597439972,-171.237964,0.00024702,2]
[313006431,1706597439981,-499.20036564,0.0002496,5]
[313006432,1706597439990,-151.0,0.00025,2]
[313006433,1706597440000,-821.778476,0.00025,2]
[313006434,1706597440009,-821.778476,0.00025,2]
[313006435,1706597440018,-821.778476,0.00025,2]
[313006436,1706597440028,-821.778476,0.00025,2]
[313006437,1706597440038,-673.243293,0.00025,2]
[313006438,1706597440047,-673.243293,0.00025,2]
[313006439,1706597440057,-673.243293,0.00025,2]
[313006440,1706597440066,-673.243293,0.00025,2]
[313006441,1706597440075,-673.243293,0.00025,2]
[313006442,1706597440084,-673.243293,0.00025,2]
[313006443,1706597440094,-7654.77868885,0.00025765,2]
[313006444,1706597440103,-4730.93218311,0.00025766,2]
[313006445,1706597440112,-821.778476,0.00025767,2]
[313006446,1706597440122,-821.778476,0.00025767,2]
[313006447,1706597440131,-673.243293,0.00025903,2]
[313006448,1706597440140,-673.243293,0.00025903,2]
[313006449,1706597440149,-673.243293,0.00025903,2]
[313006450,1706597440159,-673.243293,0.00025903,2]
[313006451,1706597440168,-290.547456,0.00025913,2]
[313006452,1706597440177,-821.778476,0.00025913,2]
[313006453,1706597440186,-821.778476,0.00025913,2]
[313006454,1706597440196,-673.243293,0.00025913,2]
[313006455,1706597440206,-673.243293,0.00025913,2]
[313006456,1706597440215,-821.778476,0.00025914,2]
[313006457,1706597440225,-821.778476,0.00025914,2]
[313006458,1706597440236,-507.77568681,0.00025915,2]
[313006459,1706597440246,-821.778476,0.00025918,2]
[313006460,1706597440255,-821.778476,0.00025918,2]
[313006461,1706597440265,-673.243293,0.00025918,2]
[313006462,1706597440274,-673.24329,0.00025918,2]
[313006463,1706597440283,-660.99029503,0.00025923,2]
[313006464,1706597440292,-821.778476,0.00025923,2]
[313006465,1706597440302,-821.778476,0.00025923,2]
[313006466,1706597440311,-200.0,0.00026399,15]
[313006467,1706597440320,-275.48926603,0.000269,2]
[313006468,1706597440329,-821.778476,0.00026908,2]
[313006469,1706597440338,-821.77848,0.00026908,2]
[313006470,1706597440348,-171.75549825,0.00026997,2]
[313006471,1706597440358,-303.13034385,0.00026998,2]
[313006472,1706597440367,-7118.20056016,0.00026998,2]
[313006473,1706597440376,-1675.57539742,0.00026998,2]
[313006474,1706597440385,-199.9483286,0.00026998,2]
[313006475,1706597440394,-1585.54765798,0.00026998,2]
[313006476,1706597440403,-2218.91260865,0.00026999,2]
[313006477,1706597440413,-12059.76440462,0.00027,2]
[313006478,1706597440425,-586.9511702,0.00027,2]
[313006479,1706597440443,-4331.413047,0.00027,2]
[313006487,1706597440948,-3691.64930843,0.00025913,3]
[313006488,1706597440961,-5286.23071055,0.00025913,3]
[313006500,1706597444716,-2375.6218187,0.00025,2]
[313006502,1706597444775,-2355.31036441,0.00025,2]
[313006503,1706597444784,-681.1679298,0.00025764,2]
[313006504,1706597444794,-626.45998102,0.00025913,3]
[313006505,1706597444803,-67136.83910021,0.00027,2]
[313006506,1706597444813,-155.0,0.00027397,2]
[313006507,1706597444822,-160.0,0.000275,2]
[313006508,1706597444831,-3447.03733515,0.0002755,4]
[313006509,1706597444841,-201.08543409,0.000279,2]
[313006510,1706597444850,-201.08543408,0.000279,2]
[313006511,1706597444861,-160.0,0.00028,2]
[313006512,1706597444870,-179.10169076,0.00028049,2]
[313006513,1706597444882,-4831.48109342,0.00028068,2]
[313006514,1706597444891,-500.0,0.00028401,2]
[313006515,1706597444901,-500.0,0.00028401,2]
[313006516,1706597445006,-500.0,0.00028401,2]
[313006517,1706597445016,-500.0,0.00028401,2]
[313006518,1706597445026,-500.0,0.00028401,2]
[313006519,1706597445035,-571.18339892,0.00028401,2]
[313006520,1706597445045,-500.0,0.00028401,2]
[313006521,1706597445055,-500.0,0.00028401,2]
[313006522,1706597445065,-500.0,0.00028401,2]
[313006523,1706597445074,-500.0,0.00028401,2]
[313006524,1706597445083,-500.0,0.00028401,2]
[313006525,1706597445095,-500.0,0.00028401,2]
[313006526,1706597445105,-617.95934553,0.00028401,2]
[313006527,1706597445114,-500.0,0.00028401,2]
[313006528,1706597445124,-500.0,0.00028401,2]
[313006529,1706597445136,-620.27498651,0.00028401,2]
[313006530,1706597445146,-500.0,0.00028401,2]
[313006531,1706597445156,-500.0,0.00028401,2]
[313006532,1706597445166,-500.0,0.00028401,2]
[313006533,1706597445175,-500.0,0.00028401,2]
[313006534,1706597445185,-500.0,0.00028401,2]
[313006535,1706597445195,-500.0,0.00028401,2]
[313006536,1706597445205,-500.0,0.00028401,2]
[313006537,1706597445214,-500.0,0.00028401,2]
[313006538,1706597445223,-500.0,0.00028401,2]
[313006539,1706597445232,-500.0,0.00028401,2]
[313006540,1706597445242,-500.0,0.00028401,2]
[313006541,1706597445252,-500.0,0.00028401,2]
[313006542,1706597445262,-624.52031489,0.00028401,2]
[313006543,1706597445271,-500.0,0.00028401,2]
[313006544,1706597445280,-500.0,0.00028401,2]
[313006545,1706597445290,-500.0,0.00028401,2]
[313006546,1706597445299,-500.0,0.00028401,2]
[313006547,1706597445310,-500.0,0.00028401,2]
[313006548,1706597445319,-500.0,0.00028401,2]
[313006549,1706597445329,-500.0,0.00028401,2]
[313006550,1706597445338,-500.0,0.00028401,2]
[313006551,1706597445349,-500.0,0.00028401,2]
[313006552,1706597445359,-500.0,0.00028401,2]
[313006553,1706597445368,-500.0,0.00028401,2]
[313006554,1706597445377,-500.0,0.00028401,2]
[313006555,1706597445386,-500.0,0.00028401,2]
[313006556,1706597445395,-500.0,0.00028401,2]
[313006557,1706597445406,-500.0,0.00028401,2]
[313006558,1706597445415,-500.0,0.00028401,2]
[313006559,1706597445424,-500.0,0.00028401,2]
[313006560,1706597445434,-500.0,0.00028401,2]
[313006561,1706597445443,-500.0,0.00028401,2]
[313006562,1706597445453,-500.0,0.00028401,2]
[313006563,1706597445462,-500.0,0.00028401,2]
[313006564,1706597445472,-19027.36663834,0.00028403,5]
[313006565,1706597445481,-160.0,0.000285,2]
[313006566,1706597445490,-155.0,0.00028767,2]
[313006567,1706597445499,-325.953475,0.000288,14]
[313006568,1706597445509,-151.60370444,0.00028942,2]
[313006569,1706597445518,-155.37232988,0.00028996,2]
[313006570,1706597445527,-576.22500035,0.00028997,2]
[313006571,1706597445536,-4017.99473319,0.00028998,2]
[313006572,1706597445545,-328.54653112,0.00028998,2]
[313006573,1706597445554,-6003.05899682,0.00028999,2]
[313006574,1706597445566,-155.0310062,0.00029,2]
[313006575,1706597445576,-160.0,0.00029,2]
[313006576,1706597445586,-280.11858007,0.00029,2]
[313006577,1706597445596,-1762.13285412,0.00029,2]
[313006578,1706597445606,-155.25455522,0.00029,2]
[313006579,1706597445615,-1245.73982326,0.00029,3]
[313006580,1706597445624,-1934.46924266,0.00029,2]
[313006581,1706597445633,-2000.0,0.00029,2]
[313006582,1706597445642,-2504.44221,0.00029,2]
[313006584,1706597445651,-2000.0,0.0002901,2]
[313006585,1706597445661,-2000.0,0.0002902,2]
[313006586,1706597445670,-2000.0,0.0002903,2]
[313006587,1706597445679,-280.0,0.00029039,15]
[313006588,1706597445689,-2000.0,0.0002904,2]
[313006589,1706597445698,-155.38434223,0.00029048,2]
[313006590,1706597445707,-221.26638139,0.00029048,2]
[313006591,1706597445717,-639.10324176,0.00029048,2]
[313006592,1706597445726,-851.06760342,0.00029048,2]
[313006593,1706597445735,-310.0564728,0.00029048,2]
[313006594,1706597445744,-202.75535816,0.00029048,2]
[313006595,1706597445754,-155.26778279,0.00029048,2]
[313006596,1706597445763,-2075.77672297,0.00029048,2]
[313006597,1706597445772,-563.18570176,0.00029049,2]
[313006598,1706597445782,-155.35590413,0.00029049,2]
[313006599,1706597445791,-2000.0,0.0002905,2]
[313006600,1706597445800,-2000.0,0.0002906,2]
[313006601,1706597445811,-1199.09633829,0.00029068,2]
[313006602,1706597445820,-166.35364662,0.00029068,2]
[313006603,1706597445829,-471.05101678,0.00029069,2]
[313006604,1706597445838,-186.18422664,0.00029069,2]
[313006605,1706597445847,-155.87949461,0.00029069,2]
[313006606,1706597445856,-155.4936066,0.00029069,2]
[313006607,1706597445865,-679.3029243,0.00029069,2]
[313006608,1706597445874,-2000.0,0.0002907,2]
[313006609,1706597445889,-2000.0,0.0002908,2]
[313006610,1706597445900,-2000.0,0.0002909,2]
[313006611,1706597445909,-2000.0,0.000291,2]
[313006612,1706597445918,-2000.0,0.0002911,2]
[313006613,1706597445928,-2000.0,0.0002912,2]
[313006614,1706597445938,-3279.965582,0.0002913,2]
[313006615,1706597445947,-160.0,0.000295,2]
[313006616,1706597445956,-528.35618136,0.00029698,2]
[313006617,1706597445966,-6000.0,0.000298,2]
[313006618,1706597445975,-245.662408,0.000298,2]
[313006619,1706597445984,-1771.39090984,0.00029892,2]
[313006620,1706597445994,-691.17500748,0.00029893,2]
[313006621,1706597446003,-1821.60523621,0.00029963,2]
[313006622,1706597446013,-2999.99999901,0.0002999,2]
[313006623,1706597446022,-230.46206156,0.00029993,2]
[313006624,1706597446031,-168.05147122,0.00029993,2]
[313006625,1706597446040,-254.21051173,0.00029993,2]
[313006626,1706597446050,-310.03964714,0.00029993,2]
[313006627,1706597446059,-532.71649964,0.00029993,2]
[313006629,1706597449644,-2218.93065317,0.00027974,2]
[313006636,1706598021438,-175.0,0.00023993,2]
[313006811,1706598638078,-1261.25015974,0.0002322,2]
[313006812,1706598638088,-1812.58188952,0.00023225,2]
[313006845,1706598641327,-327.7663532,0.00023219,2]
[313006846,1706598641337,-23087.41811048,0.00023225,2]
[313006847,1706598641348,-617.7574348,0.0002341,2]
[313006848,1706598641357,-8003.62,0.00023983,3]
[313006849,1706598641367,-155.03255684,0.00023993,2]
[313006850,1706598641377,-1290.02264877,0.00023993,2]
[313006851,1706598641386,-1111.02241216,0.00023993,2]
[313006852,1706598641395,-535.86555329,0.00023993,2]
[313006853,1706598641405,-621.56241516,0.00023993,2]
[313006854,1706598641415,-155.03255684,0.00023993,2]
[313006855,1706598641424,-300.0,0.00023993,2]
[313006856,1706598641433,-155.03255684,0.00023993,2]
[313006857,1706598641443,-1311.3899816,0.00023993,2]
[313006858,1706598641452,-235.08055389,0.00023993,2]
[313006859,1706598641461,-343.55950094,0.00023993,2]
[313006860,1706598641471,-72984.47496604,0.00023993,2]
[313007044,1706599838196,-420.061151,0.00022424,2]
[313007045,1706599838207,-497.46302012,0.00023014,2]
[313007046,1706599838219,-4376.14149873,0.00023014,2]
[313007057,1706599841342,-2378.77884245,0.00023014,2]
[313007058,1706599841352,-1261.25015974,0.00023165,2]
[313007059,1706599841362,-500.0,0.00023166,2]
[313007060,1706599841371,-327.7663532,0.00023166,2]
[313007061,1706599841381,-169.523908,0.00023183,2]
[313007062,1706599841390,-151.0,0.0002395,2]
[313007063,1706599841399,-3949.58279028,0.0002396,4]
[313007064,1706599841409,-2707.91905619,0.00023993,2]
[313007065,1706599841419,-694.43668922,0.00023993,2]
[313007066,1706599841429,-155.0310062,0.00023993,2]
[313007067,1706599841438,-235.08055389,0.00023993,2]
[313007068,1706599841448,-1100.56104288,0.00023993,2]
[313007069,1706599841457,-155.85869732,0.00023993,2]
[313007070,1706599841466,-535.86555329,0.00023993,2]
[313007071,1706599841475,-209.19221998,0.00023993,2]
[313007072,1706599841485,-300.0,0.00023993,2]
[313007073,1706599841595,-236.4672526,0.00023993,2]
[313007074,1706599841618,-683.23418041,0.00023993,2]
[313007075,1706599841638,-343.55950094,0.00023993,2]
[313007076,1706599841658,-171.90346276,0.00024,2]
[313007077,1706599841680,-231.05090022,0.00024,2]
[313007078,1706599841699,-9079.20688706,0.00024,2]
[313007079,1706599841709,-227.6315753,0.00024,2]
[313007080,1706599841718,-215.44806329,0.00024463,2]
[313007081,1706599841727,-641.33386934,0.00024486,2]
[313007082,1706599841736,-1068.680171,0.00024486,2]
[313007083,1706599841745,-2224.1716373,0.00024486,2]
[313007084,1706599841753,-155.0294556,0.00027282,2]
[313007085,1706599841762,-8696.77868885,0.00027898,2]
[313007086,1706599841771,-434.41322721,0.00027899,2]
[313007132,1706599843281,-1196.04090975,0.000279,5]
[313007172,1706599846328,-404.91796637,0.00025,2]
[313007352,1706601041696,-327.7663532,0.00023992,2]
[313007353,1706601041708,-342.9446935,0.00023993,2]
[313007354,1706601041720,-3065.15896642,0.00024,2]
[313007355,1706601041737,-252.30064042,0.00024,2]
[313007378,1706601043923,-5822.62671438,0.00024,2]
[313007380,1706601043933,-155.03255684,0.00025,2]
[313007382,1706601043941,-235.08055389,0.00025,2]
[313007384,1706601043951,-535.86555329,0.00025,2]
[313007386,1706601043960,-683.23418041,0.00025,2]
[313007388,1706601043969,-300.0,0.00025,2]
[313007390,1706601043978,-4730.93218311,0.00025,2]
[313007392,1706601043987,-8696.77868885,0.00025,2]
[313007394,1706601043996,-123.42209677,0.000279,5]
[313007396,1706601044008,-680.53699348,0.000279,5]
[313007398,1706601044017,-159.9329788,0.00027972,5]
[313007400,1706601044026,-471.55517813,0.00027973,2]
[313007402,1706601044040,-1493.08432464,0.00027974,2]
[313007433,1706601249986,6118.88422894,0.000125,2]
[313007435,1706601280157,535.86555329,0.000125,2]
[313007437,1706601294421,683.23418041,0.000125,2]
[313007438,1706601298153,563.67676591,0.000125,2]
[313007440,1706601312425,683.23418041,0.000125,2]
[313007442,1706601330426,683.23418041,0.000125,2]
[313007443,1706601350424,683.23418041,0.000125,2]
[313007445,1706601366448,683.23418041,0.000125,2]
[313007446,1706601378658,155.0310062,0.000125,2]
[313007447,1706601386433,683.23418041,0.000125,2]
[313007448,1706601392659,165.02414964,0.000125,2]
[313007449,1706601404450,683.23418041,0.000125,2]
[313007451,1706601420441,683.23418041,0.000125,2]
[313007452,1706601438510,401.83896864,0.000125,2]
[313007537,1706602232543,-327.7663532,0.00022899,2]
[313007538,1706602232553,-227.2659808,0.000229,2]
[313007539,1706602232563,-459.57020355,0.00024486,2]
[313007540,1706602232572,-3332.68719035,0.00026574,2]
[313007641,1706602243680,-4580.35349964,0.00026574,2]
[313007642,1706602243692,-783.73799886,0.00026574,2]
[313007643,1706602243701,-3016.49020114,0.00026575,4]
[313007644,1706602243710,-227.2659808,0.000279,2]
[313007645,1706602243719,-339.68161468,0.00027974,2]
[313007646,1706602243728,-260.53241197,0.00027974,2]
[313007688,1706602778974,-500.0,0.00022491,2]
[313007710,1706603189153,2417.0,0.00022491,2]
[313007753,1706603431754,-1659.90016776,0.00022491,2]
[313007754,1706603431764,-1742.39929593,0.00022492,2]
[313007755,1706603431777,-13660.19457887,0.00022492,2]
[313007756,1706603431792,-228.01853833,0.00022492,2]
[313007757,1706603431801,-310.49889812,0.00022493,2]
[313007758,1706603431812,-463.12373391,0.00022493,2]
[313007759,1706603431842,-499.56359845,0.00022493,2]
[313007768,1706603437842,-762.58228417,0.00022493,2]
[313007769,1706603437852,-169.58374,0.0002422,2]
[313007771,1706603437863,-224.67443719,0.00024506,2]
[313007773,1706603437872,-25084.58198148,0.00024507,2]
[313007774,1706603437881,-151.0,0.00024507,2]
[313007776,1706603437890,-151.0,0.00024507,2]
[313007777,1706603437899,-245.0,0.00024507,2]
[313007779,1706603437909,-1000.0,0.00024507,2]
[313007781,1706603437918,-1000.0,0.00024507,2]
[313007783,1706603437927,-1000.0,0.00024507,2]
[313007785,1706603437936,-1000.0,0.00024507,2]
[313007787,1706603437945,-1000.0,0.00024507,2]
[313007788,1706603437954,-1000.0,0.00024507,2]
[313007789,1706603437964,-1000.0,0.00024507,2]
[313007790,1706603437973,-1000.0,0.00024507,2]
[313007791,1706603437982,-1000.0,0.00024507,2]
[313007792,1706603437992,-1000.0,0.00024507,2]
[313007793,1706603438001,-1000.0,0.00024507,2]
[313007794,1706603438011,-1000.0,0.00024507,2]
[313007795,1706603438021,-1000.0,0.00024507,2]
[313007796,1706603438030,-1000.0,0.00024507,2]
[313007797,1706603438039,-1000.0,0.00024507,2]
[313007798,1706603438049,-1000.0,0.00024507,2]
[313007799,1706603438058,-1000.0,0.00024507,2]
[313007800,1706603438068,-1000.0,0.00024507,2]
[313007801,1706603438077,-1000.0,0.00024507,2]
[313007802,1706603438087,-1000.0,0.00024507,2]
[313007803,1706603438098,-1000.0,0.00024507,2]
[313007804,1706603438107,-1000.0,0.00024507,2]
[313007805,1706603438118,-1000.0,0.00024507,2]
[313007806,1706603438127,-1000.0,0.00024507,2]
[313007807,1706603438138,-1000.0,0.00024507,2]
[313007808,1706603438148,-1000.0,0.00024507,2]
[313007809,1706603438158,-1000.0,0.00024507,2]
[313007810,1706603438170,-1000.0,0.00024507,2]
[313007811,1706603438192,-1000.0,0.00024507,2]
[313007812,1706603438202,-164.13221555,0.00024529,2]
[313007813,1706603438212,-434.26606462,0.00024575,2]
[313007814,1706603438223,-8696.77868885,0.00025,2]
[313007815,1706603438232,-1000.0,0.00025,2]
[313007816,1706603438243,-1000.0,0.00025,2]
[313007817,1706603438253,-1000.0,0.00025,2]
[313007818,1706603438263,-1000.0,0.00025,2]
[313007819,1706603438273,-1000.0,0.00025,2]
[313007820,1706603438282,-1000.0,0.00025,2]
[313007821,1706603438291,-1000.0,0.00025,2]
[313007822,1706603438301,-1000.0,0.00025,2]
[313007823,1706603438310,-662.48002892,0.00025,2]
[313007824,1706603438326,-337.51997108,0.00025,2]
[313007825,1706603438337,-1000.0,0.00025,2]
[313007826,1706603438348,-1000.0,0.00025,2]
[313007827,1706603438358,-257.45511465,0.00025,2]
[313007828,1706603438374,-518.86274928,0.00025,2]
[313007882,1706604046370,4999.9,0.0002,2]
[313007891,1706604111678,1012.00745329,0.0002,2]
[313007894,1706604133460,1012.00745329,0.0002,2]
[313007895,1706604153451,1012.00745329,0.0002,2]
[313007896,1706604173556,1012.00745329,0.0002,2]
[313007898,1706604189502,1012.00745329,0.0002,2]
[313007899,1706604205522,1012.00745329,0.0002,2]
[313007900,1706604225508,1012.00745329,0.0002,2]
[313007901,1706604239523,1012.00745329,0.0002,2]
[313007902,1706604265516,1042.94037368,0.0002,2]
[313007983,1706604641268,-1295.61603841,0.00024643,2]